bitfinex-derivatives/quotes_ETHF0:USTF0_20241004
["timestamp","ask_amount","ask_price","bid_price","bid_amount"]
[1728013312400,0.4286,2367.0,2366.9,0.84421]
[1728013312594,1.231,2367.2,2366.9,0.4217]
[1728013312796,1.231,2367.2,2367.0,0.8414]
[1728013320496,1.231,2367.2,2366.9,0.4217]
[1728013320497,2.751,2367.2,2366.7,1.52]
[1728013320802,2.751,2367.2,2366.8,0.85013]
[1728013324705,2.86782497,2367.2,2366.8,0.85013]
[1728013325802,2.86782497,2367.2,2366.8,0.4276]
[1728013328409,2.86782497,2367.2,2366.6,4.47476]
[1728013328410,0.42247,2367.1,2366.6,4.47476]
[1728013328703,0.8138,2367.0,2366.6,0.4238]
[1728013328904,1.2068,2367.0,2366.6,0.4238]
[1728013329106,0.7813,2367.0,2366.7,1.52]
[1728013329303,2.0123,2367.0,2366.8,0.42251]
[1728013329496,2.0123,2367.0,2366.9,0.3978]
[1728013329697,0.7813,2367.0,2366.9,0.3978]
[1728013329907,0.7813,2367.0,2366.6,0.4238]
[1728013330307,0.7813,2367.0,2366.6,2.36635]
[1728013330502,0.7813,2367.0,2366.7,0.42254]
[1728013331005,0.7813,2367.0,2366.8,0.4243]
[1728013331408,0.7813,2367.0,2366.9,0.3981]
[1728013332605,2.0123,2367.0,2366.9,0.3981]
[1728013336000,2.0123,2367.0,2366.6,2.36636]
[1728013336205,2.0123,2367.0,2366.6,2.7684]
[1728013336609,2.0123,2367.0,2366.6,3.19096]
[1728013337212,2.0123,2367.0,2366.6,2.7684]
[1728013337410,2.0123,2367.0,2366.6,3.19096]
[1728013344615,2.0123,2367.0,2366.6,2.7684]
[1728013345415,2.0123,2367.0,2366.6,3.8755289]
[1728013345614,2.0123,2367.0,2366.6,1.2484]
[1728013345933,2.0123,2367.0,2366.6,1.67096]
[1728013346518,2.0123,2367.0,2366.6,1.2484]
[1728013348622,2.0123,2367.0,2366.6,0.826]
[1728013352217,2.0123,2367.0,2366.4,1.1071289]
[1728013352218,1.52,2366.9,2366.4,1.1071289]
[1728013352417,1.52,2366.9,2366.3,4.86849335]
[1728013352418,0.4166,2366.8,2366.3,4.4294]
[1728013352616,1.52,2366.7,2366.3,4.4294]
[1728013352820,0.4073,2366.6,2366.3,4.4294]
[1728013353014,0.4073,2366.6,2366.4,0.42259]
[1728013353323,0.4073,2366.6,2366.5,1.52]
[1728013353822,0.4073,2366.6,2366.3,1.5179289]
[1728013354222,0.4073,2366.6,2366.3,0.4108]
[1728013356525,0.4073,2366.6,2366.4,0.4174]
[1728013357421,0.3887,2366.7,2366.4,0.4174]
[1728013357627,1.6177,2366.7,2366.5,0.3958]
[1728013359429,1.6177,2366.7,2366.4,0.4174]
[1728013365138,1.6177,2366.7,2366.3,2.3266]
[1728013366135,1.6177,2366.7,2366.3,2.74921]
[1728013366835,1.6177,2366.7,2366.0,8.4629289]
[1728013367141,3.56026,2366.7,2366.1,2.36715]
[1728013367338,3.56026,2366.7,2366.1,2.77345]
[1728013368540,3.56026,2366.7,2366.1,2.3508]
[1728013369431,6.76806,2366.7,2366.1,2.3508]
[1728013370034,3.56026,2366.7,2366.1,2.3508]
[1728013370232,3.5965,2366.7,2366.2,1.52]
[1728013370438,1.226,2366.6,2366.4,1.52]
[1728013370635,1.226,2366.6,2366.5,1.196]
[1728013373039,1.226,2366.6,2366.4,1.52]
[1728013373835,1.226,2366.6,2366.2,2.7541]
[1728013374037,0.4274,2366.5,2366.2,2.7541]
[1728013374233,0.4274,2366.5,2366.2,3.17673]
[1728013374431,0.4141,2366.4,2366.2,3.17673]
[1728013375027,0.4274,2366.5,2366.3,0.42262]
[1728013375232,0.8415,2366.5,2366.3,0.42262]
[1728013377146,1.227,2366.7,2366.3,4.6482]
[1728013377340,1.6537,2366.7,2366.3,0.4226]
[1728013378241,0.4267,2366.7,2366.2,3.17673]
[1728013378445,1.6537,2366.7,2366.4,1.9426]
[1728013378641,1.6537,2366.7,2366.5,1.2048]
[1728013382346,1.227,2366.7,2366.5,1.62737]
[1728013382645,1.227,2366.7,2366.5,3.14737]
[1728013383440,0.4157,2366.8,2366.5,3.14737]
[1728013383646,0.4157,2366.8,2366.6,0.42256]
[1728013387653,0.4157,2366.8,2366.5,2.7248]
[1728013388449,0.4157,2366.8,2366.5,1.2048]
[1728013388752,0.811,2366.8,2366.5,1.62738]
[1728013390846,0.811,2366.8,2366.3,5.8349289]
[1728013391055,0.811,2366.8,2366.4,0.42259]
[1728013391246,0.811,2366.8,2366.4,0.3864]
[1728013391447,0.811,2366.8,2366.5,0.81148]
[1728013391648,2.037,2366.8,2366.6,0.3958]
[1728013393349,0.811,2366.8,2366.6,0.3958]
[1728013393551,2.037,2366.8,2366.6,0.3958]
[1728013398545,2.034,2366.8,2366.6,0.3958]
[1728013398746,0.4157,2366.8,2366.6,0.3958]
[1728013399052,1.6387,2366.8,2366.6,0.81836]
[1728013399250,1.6387,2366.8,2366.7,0.3861]
[1728013401757,1.6387,2366.8,2366.5,0.3889]
[1728013403354,1.6387,2366.8,2366.4,0.7847]
[1728013403749,1.6387,2366.8,2366.2,1.5032289]
[1728013403750,1.52,2366.6,2366.2,1.5032289]
[1728013403951,0.4264,2366.5,2366.2,1.21923]
[1728013404157,0.3922,2366.4,2366.2,1.21923]
[1728013404359,0.3922,2366.4,2366.2,0.7966]
[1728013404658,0.3922,2366.4,2366.2,1.21923]
[1728013404854,0.3922,2366.4,2366.2,0.7966]
[1728013405359,0.3922,2366.4,2366.2,1.21923]
[1728013406650,0.3922,2366.4,2366.2,2.3263589]
[1728013407857,0.8175,2366.5,2366.2,2.3263589]
[1728013408058,0.8175,2366.5,2366.2,1.1071289]
[1728013409859,1.52,2366.4,2366.1,1.1071289]
[1728013410161,0.42265,2366.2,2365.8,0.4189]
[1728013410355,3.5504,2366.1,2365.8,0.4189]
[1728013415659,2.0304,2366.1,2365.8,0.4189]
[1728013416064,1.223,2366.0,2365.8,1.9389]
[1728013416262,1.223,2366.0,2365.9,0.82]
[1728013418657,0.3993,2366.1,2365.9,0.82]
[1728013418866,1.223,2366.0,2365.9,0.82]
[1728013421372,1.6223,2366.1,2365.9,0.82]
[1728013421666,0.3993,2366.1,2365.9,0.82]
[1728013421974,1.6223,2366.1,2365.9,0.82]
[1728013426870,0.3993,2366.1,2365.9,0.82]
[1728013427073,1.6183,2366.1,2365.9,0.82]
[1728013427679,0.3993,2366.1,2365.9,0.82]
[1728013427869,1.6183,2366.1,2365.9,0.82]
[1728013429172,0.3993,2366.1,2365.9,0.82]
[1728013429375,1.6183,2366.1,2365.9,0.82]
[1728013433081,0.3993,2366.1,2365.9,0.82]
[1728013433279,1.6183,2366.1,2365.9,0.82]
[1728013437780,0.3993,2366.1,2365.9,0.82]
[1728013438684,0.3993,2366.1,2365.9,1.24268]
[1728013443991,0.3993,2366.1,2365.9,0.82]
[1728013444200,0.098,2366.5,2366.0,5.7464]
[1728013444398,3.2078,2366.6,2366.2,1.52]
[1728013444399,0.8021,2366.6,2366.2,1.52]
[1728013444692,0.8021,2366.6,2366.4,1.94259]
[1728013445084,0.8021,2366.6,2366.4,1.52]
[1728013446887,0.8021,2366.6,2366.5,0.42258]
[1728013447096,0.098,2367.0,2366.5,4.2256]
[1728013447301,0.962,2367.2,2366.4,4.7278]
[1728013447302,0.427,2366.9,2366.8,1.94253]
[1728013448491,0.427,2366.9,2366.8,1.52]
[1728013450597,0.427,2366.9,2366.7,1.9207]
[1728013452107,0.427,2366.9,2366.6,0.4]
[1728013452304,1.947,2366.9,2366.4,5.98519]
[1728013452804,0.4163,2366.8,2366.4,5.98519]
[1728013453008,0.4187,2366.7,2366.4,5.98519]
[1728013454597,0.4187,2366.7,2366.4,5.5626]
[1728013454904,0.4187,2366.7,2366.4,3.2078]
[1728013456197,1.9387,2366.7,2366.4,3.2078]
[1728013458806,1.52,2366.5,2366.4,3.2078]
[1728013459319,0.4183,2366.6,2366.4,3.2078]
[1728013462623,0.84086,2366.6,2366.3,0.4111]
[1728013463623,1.52,2366.5,2366.0,1.52]
[1728013463925,0.4041,2366.4,2366.1,0.42265]
[1728013464130,0.3915,2366.3,2366.1,0.42265]
[1728013464426,0.8063,2366.3,2366.1,0.42265]
[1728013466123,0.8063,2366.3,2366.0,1.52]
[1728013466324,0.8063,2366.3,2366.0,1.94266]
[1728013467827,0.8063,2366.3,2366.1,0.42265]
[1728013468222,0.4148,2366.3,2366.2,0.8371]
[1728013471431,3.3058,2366.7,2366.4,0.4226]
[1728013471732,3.2078,2366.7,2366.5,0.8259]
[1728013473125,0.3895,2366.8,2366.5,2.3459]
[1728013473323,0.3895,2366.8,2366.6,0.4184]
[1728013486240,0.3895,2366.8,2366.4,0.42259]
[1728013486443,0.3895,2366.8,2366.4,1.67839]
[1728013486639,0.3895,2366.8,2366.4,1.2558]
[1728013486837,0.3895,2366.8,2366.5,0.42258]
[1728013489837,0.3895,2366.8,2366.4,1.2558]
[1728013490433,1.94255,2366.7,2366.4,0.4064]
[1728013490638,0.3997,2366.6,2366.4,0.4064]
[1728013491047,0.4015,2366.5,2366.4,0.4064]
[1728013496640,5.04968,2366.5,2366.0,4.7375889]
[1728013496845,5.04968,2366.5,2366.0,4.3149289]
[1728013496846,0.4015,2366.5,2366.0,4.3149289]
[1728013497044,0.4015,2366.5,2366.1,1.94265]
[1728013497539,0.4015,2366.5,2366.1,1.52]
[1728013497739,0.82408,2366.5,2366.1,1.52]
[1728013501153,1.6135,2366.5,2366.2,1.2344]
[1728013501356,1.6135,2366.5,2366.2,1.65703]
[1728013501554,0.4015,2366.5,2366.2,1.65703]
[1728013501746,0.4015,2366.5,2366.2,3.17703]
[1728013502355,0.4015,2366.5,2366.2,1.65703]
[1728013503460,0.4015,2366.5,2366.2,1.2344]
[1728013503753,0.4015,2366.5,2366.2,3.17702]
[1728013503955,1.212,2366.7,2366.4,0.4226]
[1728013504148,0.4151,2366.7,2366.5,0.404]
[1728013504347,0.4151,2366.7,2366.6,0.8143]
[1728013504545,0.4151,2366.7,2366.3,0.796]
[1728013504756,0.83766,2366.7,2366.3,1.2183]
[1728013504951,1.9351,2366.7,2366.3,0.4223]
[1728013505157,1.52,2366.5,2366.0,1.1071289]
[1728013505354,1.65981,2366.4,2366.0,1.1071289]
[1728013505654,1.65981,2366.4,2365.9,4.2681089]
[1728013506650,3.17981,2366.4,2365.9,3.8454289]
[1728013506853,3.17981,2366.4,2365.9,4.2681189]
[1728013507155,3.1798,2366.4,2365.9,4.2680989]
[1728013507547,1.2372,2366.4,2366.0,1.52]
[1728013507749,1.2372,2366.4,2366.1,0.42265]
[1728013508149,1.2372,2366.4,2366.0,1.52]
[1728013508350,1.2372,2366.4,2366.0,1.94266]
[1728013508756,1.2372,2366.4,2366.0,1.52]
[1728013508952,0.4151,2366.4,2366.1,0.42264]
[1728013509256,0.4151,2366.4,2366.2,1.52]
[1728013509453,0.4151,2366.4,2366.3,0.4211]
[1728013510659,0.4151,2366.4,2366.3,0.8393]
[1728013512753,1.6118,2366.6,2366.3,0.8393]
[1728013512965,2.0162,2366.6,2366.3,0.8393]
[1728013516150,2.43876,2366.6,2366.3,0.8393]
[1728013516457,2.0122,2366.6,2366.3,0.8393]
[1728013518354,0.4044,2366.6,2366.3,0.8393]
[1728013518560,0.4044,2366.6,2366.3,1.26191]
[1728013525863,0.4044,2366.6,2366.4,0.42259]
[1728013526064,0.4044,2366.6,2366.4,1.52]
[1728013526265,0.404,2366.8,2366.5,2.34297]
[1728013526266,1.208,2366.8,2366.5,2.34297]
[1728013526565,1.208,2366.8,2366.6,0.7844]
[1728013528074,1.208,2366.8,2366.6,1.20696]
[1728013529177,1.208,2366.8,2366.6,0.7844]
[1728013533170,1.94255,2366.7,2366.2,1.5297589]
[1728013533473,0.8034,2366.6,2366.2,1.9206589]
[1728013533666,1.222,2366.6,2366.2,0.81353]
[1728013533870,1.52,2366.5,2366.2,0.3909]
[1728013535371,1.52,2366.5,2366.2,0.81353]
[1728013535570,1.222,2366.6,2366.3,0.42261]
[1728013535967,0.8118,2366.6,2366.4,0.4104]
[1728013536174,0.8118,2366.6,2366.5,0.4209]
[1728013544481,0.8118,2366.6,2366.2,2.6271289]
[1728013544780,0.8118,2366.6,2366.2,3.15142]
[1728013545380,0.8118,2366.6,2366.2,2.76372]
[1728013545679,0.4267,2366.5,2366.2,3.15142]
[1728013548371,0.4267,2366.5,2366.2,4.2585489]
[1728013550373,0.4267,2366.5,2366.3,0.42262]
[1728013554882,0.8118,2366.6,2366.3,0.42262]
[1728013555585,0.8118,2366.6,2366.3,1.5297489]
[1728013557684,0.8118,2366.6,2366.3,0.42262]
[1728013557880,0.8118,2366.6,2366.3,1.5297489]
[1728013561682,1.52,2366.5,2366.2,2.3159289]
[1728013561981,1.52,2366.5,2366.2,1.9282289]
[1728013562182,1.52,2366.5,2366.2,0.8211]
[1728013562384,0.4063,2366.4,2366.2,0.8211]
[1728013562784,0.8406,2366.3,2366.2,0.8211]
[1728013564188,0.8406,2366.3,2366.1,3.2078]
[1728013567297,1.52,2366.2,2366.1,3.2078]
[1728013568491,6.16903,2366.2,2366.1,3.2078]
[1728013568685,6.16903,2366.2,2365.7,0.4077]
[1728013568686,8.9542,2366.2,2365.7,0.4077]
[1728013568884,1.52,2365.8,2365.6,0.5054]
[1728013569184,2.3286,2365.7,2365.6,0.4074]
[1728013569393,2.3286,2365.7,2365.3,6.13100677]
[1728013569582,2.3286,2365.7,2365.3,6.11561677]
[1728013569778,2.3286,2365.7,2365.3,6.53841677]
[1728013570193,1.52,2365.5,2365.3,0.4074]
[1728013570380,1.52,2365.5,2365.0,4.3149289]
[1728013570381,1.52,2365.4,2365.0,3.2078]
[1728013570681,1.52,2365.4,2365.0,0.4074]
[1728013570682,1.52,2365.2,2365.0,0.4074]
[1728013572490,1.52,2365.2,2365.0,0.83023]
[1728013572791,3.2078,2365.6,2365.4,0.42276]
[1728013573086,1.6319,2365.8,2365.5,2.77876]
[1728013573483,0.4279,2365.8,2365.6,0.42273]
[1728013573693,1.695,2366.0,2365.7,1.52]
[1728013573887,1.6099,2366.0,2365.7,1.94272]
[1728013574082,1.6099,2366.0,2365.8,0.4271]
[1728013574083,0.4059,2366.0,2365.8,0.4271]
[1728013574285,1.204,2366.1,2365.9,1.52]
[1728013574484,1.6099,2366.1,2365.8,2.3698]
[1728013575691,0.4059,2366.1,2365.8,0.4271]
[1728013576087,0.4059,2366.1,2365.8,0.84979]
[1728013576282,3.2078,2366.2,2366.0,0.42266]
[1728013576486,3.6988,2366.5,2366.1,4.1332]
[1728013576687,0.9561,2366.7,2366.3,0.4226]
[1728013576688,1.204,2366.6,2366.3,0.4226]
[1728013577702,1.204,2366.6,2366.1,1.238]
[1728013577703,1.62657,2366.6,2366.1,1.238]
[1728013577995,1.62657,2366.6,2366.1,0.8332]
[1728013581197,1.204,2366.6,2366.1,0.8332]
[1728013581501,3.2078,2366.2,2366.0,0.098]
[1728013581707,0.4203,2366.1,2365.9,0.8385]
[1728013581993,1.2,2366.2,2365.9,1.26118]
[1728013582187,0.4203,2366.4,2365.9,1.26118]
[1728013582391,1.2,2366.3,2365.9,1.26118]
[1728013582795,1.2,2366.3,2365.9,0.8385]
[1728013584198,0.8429,2366.4,2365.9,0.8385]
[1728013584398,1.6203,2366.4,2365.9,0.8385]
[1728013586699,1.6203,2366.4,2365.9,1.26118]
[1728013589808,1.6203,2366.4,2365.9,0.8385]
[1728013590199,1.6203,2366.4,2365.9,1.26118]
[1728013592198,0.4203,2366.4,2366.0,0.42267]
[1728013592503,0.491,2366.6,2366.5,0.42258]
[1728013592810,1.298,2367.1,2366.6,0.42255]
[1728013593004,3.2078,2367.2,2366.7,0.3947]
[1728013593204,1.2,2367.1,2366.8,0.42253]
[1728013593404,1.2,2367.1,2366.9,0.3986]
[1728013594105,0.3959,2367.0,2366.9,0.3986]
[1728013600306,1.6257,2367.2,2366.9,0.3986]
[1728013600504,1.6257,2367.2,2366.9,0.82111]
[1728013601110,1.6257,2367.2,2366.9,0.3986]
[1728013601704,1.6257,2367.2,2366.9,0.82111]
[1728013603507,0.4257,2367.2,2367.0,0.42248]
[1728013604007,0.4257,2367.2,2367.0,0.83478]
[1728013604206,0.4257,2367.2,2367.0,0.4123]
[1728013606909,0.4257,2367.2,2367.0,0.83479]
[1728013608717,0.4257,2367.2,2367.0,0.4123]
[1728013610022,0.4257,2367.2,2367.0,0.83479]
[1728013611627,0.4257,2367.2,2367.0,0.4123]
[1728013611825,0.4257,2367.2,2367.0,0.83479]
[1728013612213,0.4257,2367.2,2367.0,0.4123]
[1728013613225,0.4257,2367.2,2367.0,0.83479]
[1728013613521,0.4257,2367.2,2367.0,0.4123]
[1728013614830,0.4257,2367.2,2366.7,4.02504]
[1728013616525,3.7257,2367.2,2366.7,0.3947]
[1728013616731,7.35596,2367.2,2366.7,0.3947]
[1728013616932,6.9335,2367.2,2366.7,0.3947]
[1728013617426,6.9335,2367.2,2366.7,0.81724]
[1728013617815,6.9335,2367.2,2366.7,0.3947]
[1728013618015,6.9335,2367.2,2366.8,0.42252]
[1728013618819,6.9335,2367.2,2366.7,0.3947]
[1728013619321,6.9335,2367.2,2366.8,0.42252]
[1728013620023,6.9335,2367.2,2366.8,3.63032]
[1728013620226,6.9335,2367.2,2366.8,0.42252]
[1728013620621,6.9335,2367.2,2366.7,0.81724]
[1728013620924,7.35596,2367.2,2366.7,0.3947]
[1728013621228,7.35596,2367.2,2366.6,1.24655]
[1728013621229,3.72249,2367.1,2366.6,0.4095]
[1728013621429,1.2054,2367.0,2366.6,0.4095]
[1728013621935,0.3867,2366.9,2366.6,0.4095]
[1728013622124,0.3867,2366.9,2366.4,1.26479]
[1728013622529,3.6867,2366.9,2366.3,0.3864]
[1728013622730,7.31702,2366.9,2366.3,0.80901]
[1728013622925,6.8945,2366.9,2366.4,0.42259]
[1728013623529,7.31702,2366.9,2366.3,0.3864]
[1728013623731,7.31702,2366.9,2366.3,0.80901]
[1728013624038,3.3,2366.7,2366.3,0.80901]
[1728013624236,0.8103,2366.6,2366.3,0.80901]
[1728013624433,1.224,2366.6,2366.3,0.80901]
[1728013625835,1.224,2366.6,2366.4,0.4226]
[1728013626232,1.224,2366.6,2366.3,0.3864]
[1728013626434,1.224,2366.6,2366.3,0.80901]
[1728013629937,3.2078,2366.9,2366.3,3.6864]
[1728013630143,1.197,2366.8,2366.7,0.42255]
[1728013630333,0.4257,2367.0,2366.8,0.82081]
[1728013630533,0.4257,2367.0,2366.9,0.4217]
[1728013630729,3.2078,2367.2,2366.9,0.4217]
[1728013630934,0.4257,2367.3,2366.9,0.8442]
[1728013632040,0.4257,2367.3,2367.0,0.42249]
[1728013632342,0.4257,2367.3,2366.9,0.4217]
[1728013632641,3.7257,2367.3,2366.9,0.4217]
[1728013633339,4.14815,2367.3,2366.8,0.3983]
[1728013633539,3.7257,2367.3,2366.8,0.3983]
[1728013633740,3.7257,2367.3,2366.8,0.8054]
[1728013635450,3.7257,2367.3,2366.8,1.22793]
[1728013636050,0.4257,2367.3,2366.8,1.22793]
[1728013636441,0.4257,2367.3,2366.8,0.8054]
[1728013637244,3.3,2367.2,2366.8,0.3983]
[1728013637456,0.407,2367.1,2366.8,0.3983]
[1728013637843,0.4044,2367.0,2366.8,0.3983]
[1728013638242,0.4044,2367.0,2366.7,3.2078]
[1728013638952,0.4044,2367.0,2366.5,0.85107]
[1728013639545,0.4044,2367.0,2366.6,0.42256]
[1728013639753,4.12689,2367.0,2366.5,0.4285]
[1728013640753,0.83853753,2366.9,2366.5,0.4285]
[1728013641045,0.3867,2366.8,2366.5,0.4285]
[1728013641549,0.4167,2366.7,2366.5,0.4285]
[1728013643245,7.5256,2366.6,2366.1,3.63045]
[1728013643445,3.6868,2366.6,2366.1,4.43575]
[1728013644255,0.4167,2366.7,2366.3,0.42262]
[1728013644450,0.4167,2366.7,2366.4,0.398]
[1728013644754,0.4167,2366.7,2366.5,0.4073]
[1728013648346,3.7167,2366.7,2366.3,3.2078]
[1728013648753,3.7167,2366.7,2366.4,0.4122]
[1728013649556,3.7167,2366.7,2366.5,0.3992]
[1728013649756,3.7167,2366.7,2366.6,0.4206]
[1728013658668,0.4167,2366.7,2366.6,0.4206]
[1728013671674,0.4167,2366.7,2366.4,3.2078]
[1728013672077,0.4287,2366.6,2366.4,3.2078]
[1728013672371,0.4093,2366.5,2366.4,3.2078]
[1728013672871,1.9293,2366.5,2366.4,3.2078]
[1728013673080,2.35188,2366.5,2366.1,0.3969]
[1728013673981,0.3989,2366.4,2366.1,0.3969]
[1728013674669,0.3989,2366.4,2366.1,0.81954]
[1728013677568,0.3989,2366.4,2366.1,0.3969]
[1728013681568,0.3989,2366.4,2366.1,0.81955]
[1728013685886,0.3989,2366.4,2366.2,0.4019]
[1728013686187,0.3989,2366.4,2366.2,0.82453]
[1728013686384,0.3989,2366.4,2366.3,0.4017]
[1728013688379,0.3989,2366.4,2366.2,0.4019]
[1728013688779,3.63031,2366.9,2366.4,0.4226]
[1728013688981,0.3977,2366.7,2366.5,0.42258]
[1728013689185,0.3977,2366.7,2366.6,0.4041]
[1728013689887,0.3977,2366.7,2366.3,0.42261]
[1728013690081,0.3977,2366.7,2366.3,0.82671]
[1728013690285,0.3977,2366.7,2366.3,0.4041]
[1728013690485,0.3977,2366.7,2366.3,0.82672]
[1728013691988,0.3977,2366.7,2366.3,0.4041]
[1728013692288,0.3977,2366.7,2366.4,0.4226]
[1728013693086,0.3977,2366.7,2366.5,0.8122]
[1728013693287,0.3977,2366.7,2366.3,0.42261]
[1728013693882,0.3977,2366.7,2366.4,0.42259]
[1728013696276,0.3977,2366.7,2366.2,3.2078]
[1728013696480,0.3977,2366.7,2366.5,0.42257]
[1728013696685,0.3977,2366.7,2366.6,1.2599]
[1728013703390,2.709,2366.8,2366.6,1.2599]
[1728013712092,2.709,2366.8,2366.6,1.2884]
[1728013712490,1.52,2366.8,2366.6,1.2884]
[1728013715495,2.3931,2366.9,2366.6,1.2884]
[1728013715699,0.4179,2366.9,2366.8,1.94253]
[1728013716004,0.4222,2367.1,2366.9,0.42251]
[1728013716199,0.4222,2367.1,2367.0,0.3928]
[1728013717490,1.9422,2367.1,2367.0,0.3928]
[1728013717895,0.4225,2367.0,2366.6,3.6498]
[1728013718099,1.52,2366.7,2366.6,0.0285]
[1728013720804,2.3371,2366.8,2366.6,0.45106]
[1728013721112,0.3965,2366.8,2366.6,0.45106]
[1728013721298,0.3965,2366.8,2366.6,0.0285]
[1728013721801,0.3965,2366.8,2366.6,0.4237]
[1728013723304,0.3965,2366.8,2366.7,0.42255]
[1728013723506,1.52,2367.1,2366.8,0.42251]
[1728013723706,0.4042,2367.0,2366.9,0.4024]
[1728013728398,0.4042,2367.0,2366.9,1.2025]
[1728013731098,3.72823,2367.4,2366.9,1.62501]
[1728013731099,1.618,2367.4,2366.9,1.62501]
[1728013731299,0.3989,2367.2,2367.0,0.42248]
[1728013732705,0.3989,2367.2,2366.9,2.7225]
[1728013732901,0.3989,2367.2,2367.0,0.42249]
[1728013733307,0.3989,2367.2,2366.9,3.145]
[1728013734607,0.3989,2367.2,2367.0,0.42248]
[1728013737009,0.3989,2367.2,2366.9,6.3528]
[1728013739510,1.52,2367.1,2366.9,0.4024]
[1728013739707,2.334,2367.1,2366.9,0.4024]
[1728013740609,0.4055,2367.1,2367.0,0.42249]
[1728013740905,0.3989,2367.2,2367.0,1.23869]
[1728013743512,0.3989,2367.2,2367.0,0.8162]
[1728013744112,0.3989,2367.2,2367.0,1.23868]
[1728013744515,0.3989,2367.2,2367.0,0.8162]
[1728013745517,0.3989,2367.2,2367.0,1.23868]
[1728013746312,1.52,2367.1,2366.9,0.4024]
[1728013746518,2.34519,2367.1,2366.6,0.42256]
[1728013746707,1.52,2366.9,2366.6,0.4223]
[1728013747021,0.3981,2366.8,2366.6,0.4223]
[1728013747217,0.8221,2366.8,2366.6,0.4223]
[1728013747613,2.3421,2366.8,2366.6,0.4223]
[1728013748714,2.3421,2366.8,2366.4,0.8119]
[1728013748715,2.3421,2366.8,2366.4,0.83339]
[1728013748915,2.3421,2366.8,2366.4,1.22159]
[1728013749116,2.3421,2366.8,2366.5,0.42258]
[1728013749711,0.8221,2366.8,2366.5,0.42258]
[1728013749919,0.8221,2366.8,2366.5,0.84348]
[1728013750117,0.8221,2366.8,2366.6,0.42256]
[1728013750618,0.8221,2366.8,2366.5,0.84347]
[1728013753325,0.8221,2366.8,2366.6,0.42255]
[1728013756526,0.8221,2366.8,2366.6,1.94255]
[1728013758413,3.1098,2367.1,2366.6,1.52]
[1728013758625,0.4274,2367.0,2366.7,0.42254]
[1728013758911,0.4274,2367.0,2366.6,1.52]
[1728013758912,1.9474,2367.0,2366.6,1.94255]
[1728013759726,1.9474,2367.0,2366.7,0.42254]
[1728013759921,1.9474,2367.0,2366.8,0.3951]
[1728013761530,1.9474,2367.0,2366.5,3.6287]
[1728013761721,0.3968,2366.9,2366.6,0.42256]
[1728013762123,0.4006,2366.8,2366.6,0.42256]
[1728013766326,0.4006,2366.8,2366.5,4.44637]
[1728013767628,1.9206,2366.8,2366.5,0.3951]
[1728013769632,1.9206,2366.8,2366.5,0.81768]
[1728013770729,1.9206,2366.8,2366.5,0.3951]
[1728013771524,3.1026,2366.8,2366.5,0.3951]
[1728013771928,3.1026,2366.8,2366.5,0.81768]
[1728013772729,3.1026,2366.8,2366.5,0.3951]
[1728013773336,1.52,2366.7,2366.4,0.4108]
[1728013773528,0.4256,2366.6,2366.4,0.4286]
[1728013773935,0.3877,2366.5,2366.4,0.4286]
[1728013775639,0.3877,2366.5,2366.4,0.8512]
[1728013776741,0.3877,2366.5,2366.4,0.4286]
[1728013777826,0.3877,2366.5,2366.2,3.63043]
[1728013778032,1.9077,2366.5,2366.3,0.3868]
[1728013778231,1.52,2366.4,2366.1,0.8153]
[1728013778437,1.52,2366.4,2366.0,0.80945]
[1728013778641,1.52,2366.4,2366.1,0.42265]
[1728013781441,1.52,2366.2,2366.0,0.7996]
[1728013781835,0.3955,2366.1,2366.0,1.22226]
[1728013783638,1.9155,2366.1,2365.9,3.2078]
[1728013783840,0.417,2366.0,2365.9,3.2078]
[1728013785434,0.417,2366.0,2365.7,1.26112]
[1728013786646,0.417,2366.0,2365.7,0.8384]
[1728013790243,1.52,2365.9,2365.7,0.8384]
[1728013790941,0.417,2366.0,2365.5,5.31432284]
[1728013790942,1.9205,2365.8,2365.5,5.31432284]
[1728013791147,1.9205,2365.8,2365.5,5.71112284]
[1728013791442,1.52,2365.6,2365.4,0.7977]
[1728013791650,1.52,2365.5,2365.4,0.4099]
[1728013791841,1.9205,2365.5,2365.4,0.4099]
[1728013793350,1.9205,2365.5,2365.3,0.3968]
[1728013794039,0.4005,2365.5,2365.3,0.3968]
[1728013794244,0.4005,2365.5,2365.3,0.81959]
[1728013794441,0.4005,2365.5,2365.4,0.4221]
[1728013795443,0.4005,2365.5,2365.4,0.84488]
[1728013796046,0.4005,2365.5,2365.4,0.4221]
[1728013797854,0.4005,2365.5,2365.4,0.84488]
[1728013807460,0.4005,2365.5,2365.3,0.81959]
[1728013808251,1.9205,2365.5,2365.3,0.81959]
[1728013812861,0.0028528,2365.3,2365.2,3.2078]
[1728013813062,1.5228528,2365.3,2365.2,3.2078]
[1728013815860,1.5228528,2365.3,2365.2,3.63061]
[1728013816359,1.5228528,2365.3,2365.2,0.42281]
[1728013816963,1.5228528,2365.3,2365.1,0.42282]
[1728013817164,0.0028528,2365.3,2365.2,0.4264]
[1728013818261,2.696,2365.4,2365.2,0.4264]
[1728013818564,1.52,2365.3,2364.9,4.04246]